bitfinex/quotes_SOLUSD_20250616
["timestamp","ask_amount","ask_price","bid_price","bid_amount"]
[1750063614181,7.83289173,157.12,157.07,6.25029173]
[1750063614182,33.83289173,157.12,157.07,6.25029173]
[1750063614800,33.83289173,157.12,157.08,6.36618283]
[1750063614985,7.83289173,157.12,157.08,6.36618283]
[1750063615382,26.0,157.12,157.09,6.25029173]
[1750063616317,26.0,157.12,157.1,6.36537237]
[1750063619421,32.25029173,157.12,157.09,6.36577757]
[1750063620613,6.25029173,157.1,157.09,6.36577757]
[1750063621403,6.25029173,157.1,157.06,6.3669935]
[1750063621605,6.25029173,157.09,157.06,6.3669935]
[1750063622016,6.25029173,157.1,157.06,12.61728523]
[1750063623394,6.25029173,157.1,157.05,48.18810405]
[1750063624314,6.25029173,157.1,157.05,54.55550296]
[1750063625822,26.0,157.12,157.05,54.55550296]
[1750063625998,6.25029173,157.1,157.05,54.55550296]
[1750063626199,14.0010067,157.1,157.05,54.55550296]
[1750063627098,7.75071497,157.1,157.06,6.25029173]
[1750063627305,7.75071497,157.1,157.07,6.25029173]
[1750063628316,7.75071497,157.1,157.08,6.36618283]
[1750063633528,6.25029173,157.09,157.07,6.36648595]
[1750063633716,6.25029173,157.08,157.07,6.36648595]
[1750063634426,6.25029173,157.09,157.07,6.36648595]
[1750063634630,7.75071497,157.1,157.07,6.25029173]
[1750063634932,7.75071497,157.1,157.07,22.16676209]
[1750063635814,7.75071497,157.1,157.07,28.53335023]
[1750063637134,7.75071497,157.1,157.08,6.25029173]
[1750063637834,7.75071497,157.1,157.09,12.6160693]
[1750063645546,7.81699173,157.15,157.09,28.53051324]
[1750063645751,7.81699173,157.15,157.1,32.25029173]
[1750063646857,7.81699173,157.15,157.11,6.36496722]
[1750063647642,7.81699173,157.15,157.11,22.27738527]
[1750063649146,6.25029173,157.15,157.11,22.27738527]
[1750063649326,6.25029173,157.15,157.11,28.527677]
[1750063650050,18.64964886,157.18,157.11,28.527677]
[1750063650243,6.25029173,157.15,157.11,28.527677]
[1750063650544,13.81690205,157.15,157.11,28.527677]
[1750063652752,7.56661032,157.15,157.13,6.25029173]
[1750063653748,7.56661032,157.15,157.14,12.61404379]
[1750063653947,7.56661032,157.15,157.14,6.36375206]
[1750063655950,7.56661032,157.15,157.13,6.36415706]
[1750063657246,6.25029173,157.14,157.13,6.36415706]
[1750063658645,6.25029173,157.14,157.11,15.91241805]
[1750063659269,6.25029173,157.12,157.1,6.36537237]
[1750063659565,6.25029173,157.11,157.1,6.36537237]
[1750063659764,6.25029173,157.11,157.07,6.36658814]
[1750063659936,6.25029173,157.09,157.07,6.36658814]
[1750063660959,6.25029173,157.09,157.06,6.3669935]
[1750063663158,6.25029173,157.08,157.05,22.28509186]
[1750063666049,6.25029173,157.09,157.05,22.28509186]
[1750063666359,6.25029173,157.09,157.05,28.53538359]
[1750063667035,6.25029173,157.1,157.05,28.53538359]
[1750063668065,6.25029173,157.09,157.05,28.53538359]
[1750063674173,6.25029173,157.09,157.05,22.16798468]
[1750063674473,6.25029173,157.09,157.05,15.91769295]
[1750063675479,6.25029173,157.09,157.05,22.28509186]
[1750063678378,6.25029173,157.09,157.05,28.53538359]
[1750063679267,26.0,157.12,157.05,28.53538359]
[1750063679458,6.25029173,157.09,157.05,28.53538359]
[1750063679769,6.25029173,157.11,157.06,6.25029173]
[1750063680147,26.0,157.12,157.07,6.25029173]
[1750063680469,6.25029173,157.11,157.08,6.36618283]
[1750063680679,32.25029173,157.12,157.08,12.61647456]
[1750063680973,32.25029173,157.12,157.08,28.53193165]
[1750063681789,6.25029173,157.12,157.08,28.53193165]
[1750063682152,27.5593,157.14,157.08,28.53193165]
[1750063682358,6.25029173,157.12,157.08,28.53193165]
[1750063682671,6.25029173,157.12,157.08,22.28163992]
[1750063683084,6.25029173,157.11,157.08,22.28163992]
[1750063684090,6.25029173,157.12,157.08,22.28163992]
[1750063684254,6.25029173,157.12,157.08,28.53193165]
[1750063684653,6.25029173,157.13,157.09,6.25029173]
[1750063684860,6.25029173,157.14,157.09,6.25029173]
[1750063685851,7.56661032,157.15,157.12,6.25029173]
[1750063686275,7.56661032,157.15,157.13,6.36415706]
[1750063689787,7.56661032,157.15,157.14,6.25029173]
[1750063690568,7.56661032,157.15,157.13,12.61444879]
[1750063690772,13.81690205,157.15,157.13,6.36415706]
[1750063690977,6.25029173,157.14,157.13,6.36415706]
[1750063691278,6.25029173,157.14,157.11,6.36496722]
[1750063692285,6.25029173,157.13,157.11,6.36496722]
[1750063693119,6.25029173,157.13,157.1,6.36537237]
[1750063694282,6.25029173,157.12,157.1,6.36537237]
[1750063694890,7.56661032,157.15,157.1,6.36537237]
[1750063695088,6.25029173,157.14,157.1,6.36537237]
[1750063696885,6.25029173,157.14,157.1,6.25029173]
[1750063697989,6.25029173,157.14,157.11,6.36496722]
[1750063700981,6.25029173,157.14,157.09,28.5296083]
[1750063701180,6.25029173,157.13,157.09,22.27931657]
[1750063701390,6.25029173,157.13,157.09,28.5296083]
[1750063701890,6.25029173,157.14,157.09,28.5296083]
[1750063703568,6.25029173,157.14,157.11,6.36496722]
[1750063704062,13.81690205,157.15,157.11,28.527677]
[1750063706090,7.56661032,157.15,157.11,28.527677]
[1750063706273,7.56661032,157.15,157.14,6.25029173]
[1750063706595,7.56661032,157.15,157.13,6.25029173]
[1750063706794,7.56661032,157.15,157.12,25.98]
[1750063707092,7.56661032,157.15,157.11,6.36496722]
[1750063707389,6.25029173,157.14,157.11,6.36496722]
[1750063707570,13.81690205,157.15,157.11,6.36496722]
[1750063708067,13.81690205,157.15,157.11,22.27738527]
[1750063709894,7.56661032,157.15,157.11,22.27738527]
[1750063710281,13.81690205,157.15,157.11,22.27738527]
[1750063713110,13.81690205,157.15,157.11,15.91241805]
[1750063715025,13.81690205,157.15,157.11,22.27738527]
[1750063715910,6.25029173,157.14,157.11,22.27738527]
[1750063716619,13.81690205,157.15,157.11,22.27738527]
[1750063719611,6.25029173,157.14,157.11,22.27738527]
[1750063720319,6.25029173,157.14,157.11,15.91241805]
[1750063720519,6.25029173,157.13,157.11,15.91241805]
[1750063720828,6.25029173,157.14,157.11,15.91241805]
[1750063721494,13.81690205,157.15,157.11,15.91241805]
[1750063721902,7.56661032,157.15,157.11,22.16270978]
[1750063722632,7.56661032,157.15,157.11,28.527677]
[1750063722801,7.56661032,157.15,157.13,6.25029173]
[1750063724621,7.56661032,157.15,157.14,12.61404379]
[1750063726112,7.56661032,157.15,157.14,6.36375206]
[1750063736233,7.56661032,157.15,157.13,6.36415706]
[1750063738012,7.56661032,157.15,157.13,12.61444879]
[1750063742948,7.56661032,157.15,157.13,10.35913214]
[1750063743130,7.56661032,157.15,157.13,3.99497508]
[1750063744451,7.56661032,157.15,157.14,6.36375206]
[1750063747050,7.56661032,157.15,157.12,26.27094248]
[1750063747344,7.56661032,157.15,157.13,3.99497508]
[1750063748637,7.56661032,157.15,157.14,6.36375206]
[1750063749422,7.56661032,157.15,157.14,10.35872714]
[1750063749827,7.56661032,157.15,157.14,6.36375206]
[1750063750542,7.56661032,157.15,157.12,22.2759674]
[1750063750743,3.99497508,157.14,157.12,22.2759674]
[1750063751554,3.99497508,157.13,157.09,15.91377048]
[1750063751862,3.99497508,157.11,157.1,6.36537237]
[1750063752225,3.99497508,157.11,157.08,6.36618283]
[1750063752559,3.99497508,157.1,157.06,22.28356151]
[1750063752854,6.24796887,157.1,157.06,22.28356151]
[1750063753057,6.24796887,157.09,157.06,22.28356151]
[1750063755061,6.24796887,157.08,157.06,22.28356151]
[1750063756342,1.5161,157.11,157.05,6.36739891]
[1750063756343,6.24796887,157.07,157.05,6.36739891]
[1750063757256,6.24796887,157.07,157.04,22.28731533]
[1750063757430,6.24796887,157.08,157.04,22.28731533]
[1750063758145,6.24796887,157.08,157.04,28.5352842]
[1750063758348,1.5161,157.11,157.05,6.24796887]
[1750063758527,6.24796887,157.09,157.05,6.24796887]
[1750063758735,6.24796887,157.09,157.04,28.5352842]
[1750063759263,6.24796887,157.08,157.04,28.5352842]
[1750063759440,6.24796887,157.08,157.04,54.4952842]
[1750063760144,1.5161,157.11,157.04,54.4952842]
[1750063760345,6.24796887,157.08,157.04,54.4952842]
[1750063762255,6.24796887,157.09,157.04,54.4952842]
[1750063762635,6.24796887,157.09,157.06,6.3669935]
[1750063763664,6.24796887,157.09,157.05,22.2858962]
[1750063766635,26.0,157.12,157.07,6.24796887]
[1750063766945,6.24796887,157.1,157.05,28.53386507]
[1750063767346,6.24796887,157.1,157.06,6.24796887]
[1750063768743,6.24796887,157.1,157.07,22.2830585]
[1750063769862,6.24796887,157.09,157.07,22.2830585]
[1750063770043,6.24796887,157.09,157.07,6.36658814]
[1750063770852,6.24796887,157.09,157.05,6.36739891]
[1750063771567,6.24796887,157.09,157.05,12.61536778]
[1750063772149,6.24796887,157.09,157.05,6.36739891]
[1750063772554,6.24796887,157.08,157.05,6.36739891]
[1750063774769,9.12129834,157.1,157.05,22.2858962]
[1750063774975,15.36926721,157.1,157.05,28.53386507]
[1750063775153,6.24796887,157.09,157.05,28.53386507]
[1750063775349,6.24796887,157.09,157.05,22.2858962]
[1750063775558,6.24796887,157.09,157.05,28.53386507]
[1750063776162,6.24796887,157.08,157.05,22.2858962]
[1750063778184,6.24796887,157.08,157.05,15.91849729]
[1750063778369,6.24796887,157.08,157.04,6.36780438]
[1750063778554,6.24796887,157.07,157.04,6.36780438]
[1750063778750,6.24796887,157.06,157.04,6.36780438]
[1750063778953,4.00063776,157.05,157.04,6.36780438]
[1750063779154,18.64964886,157.09,157.04,6.36780438]
[1750063779581,4.00063776,157.06,157.04,6.36780438]
[1750063780082,18.64964886,157.09,157.03,6.36820989]
[1750063780255,4.00063776,157.06,157.03,6.36820989]
[1750063780985,35.12129834,157.1,157.03,28.53979457]
[1750063781285,6.25105994,157.08,157.03,28.53979457]
[1750063783078,6.25105994,157.07,157.03,28.53979457]
[1750063789475,6.25105994,157.05,157.03,6.36820989]
[1750063789699,26.0,157.07,157.03,6.36820989]
[1750063789700,6.25105994,157.04,157.03,6.36820989]
[1750063790398,6.25105994,157.04,157.0,15.92265459]
[1750063790606,6.25105994,157.03,157.0,15.92265459]
[1750063791200,6.25105994,157.02,156.99,6.36983247]
[1750063792191,6.25105994,157.02,156.98,22.29583385]
[1750063792609,1.5278,157.05,156.98,28.54689379]
[1750063792793,6.25105994,157.03,156.98,28.54689379]
[1750063794005,6.25105994,157.02,156.98,28.54689379]
[1750063797114,6.25105994,157.03,156.98,22.29583385]
[1750063797287,6.25105994,157.03,156.99,6.25105994]
[1750063797989,6.25105994,157.01,156.98,22.29583385]
[1750063798206,6.25105994,157.02,156.98,22.29583385]
[1750063798906,6.25105994,157.02,156.98,28.54689379]
[1750063799110,1.5278,157.05,156.99,6.25105994]
[1750063799285,6.25105994,157.03,156.99,6.25105994]
[1750063799706,6.25105994,157.02,156.98,28.54689379]
[1750063800309,6.25105994,157.03,156.98,28.54689379]
[1750063802924,6.25105994,157.03,157.0,6.36942675]
[1750063805228,6.25105994,157.03,156.99,6.36983247]
[1750063806926,4.00246188,157.03,156.98,26.29829573]
[1750063809199,4.00246188,157.02,156.98,26.29829573]
[1750063810893,1.5278,157.05,156.98,6.37023824]
[1750063810894,4.00246188,157.0,156.98,6.37023824]
[1750063811112,4.00246188,156.99,156.98,6.37023824]
[1750063811333,26.0,157.01,156.98,6.37023824]
[1750063811334,4.00246188,157.0,156.98,6.37023824]
[1750063813123,4.00246188,157.0,156.96,6.37104994]
[1750063813708,4.85089981,157.05,156.99,4.00246188]
[1750063814014,5.53026188,157.05,157.0,4.00246188]
[1750063814315,150.32198466,157.08,157.02,4.00246188]
[1750063814514,5.62616188,157.09,157.04,4.00246188]
[1750063814904,26.0,157.08,157.05,6.36739891]
[1750063819836,26.0,157.08,157.05,6.24925778]
[1750063821839,26.0,157.08,157.06,6.3669935]
[1750063824512,26.0,157.08,157.06,12.61625128]
[1750063825912,26.0,157.08,157.07,6.24925778]
[1750063826234,26.0,157.08,157.06,12.61625128]
[1750063826949,7.51669834,157.1,157.07,12.61584592]
[1750063827126,33.51669834,157.1,157.07,12.61584592]
[1750063827445,33.51669834,157.1,157.08,6.24925778]
[1750063827446,7.51669834,157.1,157.08,6.24925778]
[1750063827615,7.51669834,157.1,157.07,28.53231628]
[1750063829628,13.76595612,157.1,157.07,6.36658814]
[1750063830347,7.51669834,157.1,157.07,6.36658814]
[1750063830530,7.51669834,157.1,157.07,12.61584592]
[1750063833144,13.76595612,157.1,157.07,6.36658814]
[1750063833527,6.24925778,157.09,157.07,6.36658814]
[1750063833922,39.76595612,157.1,157.07,6.36658814]
[1750063835022,6.24925778,157.09,157.06,22.28430194]
[1750063835722,6.24925778,157.09,157.06,6.3669935]
[1750063836339,6.24925778,157.08,157.06,6.3669935]
[1750063836851,6.24925778,157.07,157.04,6.36780438]
[1750063837421,6.24925778,157.06,157.04,6.36780438]
[1750063838254,6.24925778,157.07,157.04,6.36780438]
[1750063839532,6.24925778,157.07,157.03,6.36820989]
[1750063840459,6.24925778,157.05,157.03,6.36820989]
[1750063841740,6.24925778,157.05,157.01,6.36902108]
[1750063842960,6.24925778,157.04,157.01,6.36902108]
[1750063843670,7.51669834,157.1,157.04,6.36780438]
[1750063843974,26.0,157.09,157.04,6.36780438]
[1750063844129,6.24925778,157.08,157.04,12.61706216]
[1750063845441,6.24925778,157.09,157.04,28.53657311]
[1750063846054,7.51669834,157.1,157.06,6.24925778]
[1750063846449,39.76595612,157.1,157.06,6.24925778]
[1750063847342,33.51669834,157.1,157.07,12.61584592]
[1750063847768,33.51669834,157.1,157.07,6.36658814]
[1750063850469,33.51669834,157.1,157.07,12.61584592]
[1750063850837,33.51669834,157.1,157.07,28.53231628]
[1750063853666,33.51669834,157.1,157.07,22.2830585]
[1750063857066,33.51669834,157.1,157.08,6.24925778]
[1750063857268,33.51669834,157.1,157.09,6.24925778]
[1750063857269,7.51669834,157.1,157.09,6.24925778]
[1750063857453,7.51669834,157.1,157.07,15.91647036]
[1750063857959,7.51669834,157.1,157.07,22.16572814]
[1750063858300,7.51669834,157.1,157.07,15.91647036]
[1750063858640,7.51669834,157.1,157.07,22.16572814]
[1750063859166,7.51669834,157.1,157.07,22.2830585]
[1750063862474,6.24925778,157.09,157.07,6.36658814]
[1750063862674,6.24925778,157.08,157.05,6.36739891]
[1750063862864,6.24925778,157.07,157.05,6.36739891]
[1750063864377,6.24925778,157.07,157.04,15.91858746]
[1750063865262,7.51669834,157.1,157.04,15.91858746]
[1750063865263,6.24925778,157.08,157.04,22.16784524]
[1750063866080,6.24925778,157.09,157.05,6.24925778]
[1750063866583,6.24925778,157.09,157.06,6.3669935]
[1750063868960,6.24925778,157.09,157.06,15.91748376]
[1750063870264,7.51669834,157.1,157.06,22.16674154]
[1750063870481,13.76595612,157.1,157.06,22.16674154]
[1750063871090,13.76595612,157.1,157.06,28.53373504]
[1750063871291,13.76595612,157.1,157.06,22.28447726]
[1750063873990,13.76595612,157.1,157.06,22.16674154]
[1750063874286,13.76595612,157.1,157.06,15.91748376]
[1750063874486,13.76595612,157.1,157.06,22.16674154]
[1750063875276,13.76595612,157.1,157.06,15.91748376]
[1750063875485,6.24925778,157.09,157.06,15.91748376]
[1750063875987,6.24925778,157.09,157.06,22.28447726]
[1750063878389,13.76595612,157.1,157.06,22.28447726]
[1750063879972,6.24925778,157.1,157.06,22.28447726]
[1750063880882,6.24925778,157.11,157.06,28.53373504]
[1750063881073,22.26283856,157.13,157.08,6.24925778]
[1750063881273,16.01358078,157.13,157.09,6.24925778]
[1750063881864,16.01358078,157.13,157.1,6.36537237]
[1750063882203,16.01358078,157.13,157.1,28.52806108]
[1750063883882,16.01358078,157.13,157.1,22.2788033]
[1750063884082,16.01358078,157.13,157.1,28.52806108]
[1750063886174,16.01358078,157.13,157.1,15.91343093]
[1750063886574,16.01358078,157.13,157.1,22.16268871]
[1750063888326,16.01358078,157.13,157.1,28.52806108]
[1750063889015,16.01358078,157.13,157.12,6.24925778]
[1750063889983,16.01358078,157.13,157.12,32.47358092]
[1750063890297,7.78705103,157.14,157.13,6.36415706]
[1750063890504,7.78705103,157.14,157.13,12.61341484]
[1750063893900,7.78705103,157.14,157.13,6.36415706]
[1750063894124,7.78705103,157.14,157.13,12.61341484]
[1750063895293,7.78705103,157.14,157.13,6.36415706]
[1750063895493,7.78705103,157.14,157.13,12.61341484]
[1750063905218,7.78705103,157.14,157.13,32.28415706]
[1750063905528,7.78705103,157.14,157.13,12.61341484]
[1750063905734,7.78705103,157.14,157.13,38.53341484]
[1750063909620,7.78705103,157.14,157.13,38.81773798]
[1750063915719,7.78705103,157.14,157.13,57.46738684]
[1750063920245,7.78705103,157.14,157.13,32.5684802]
[1750063920543,7.78705103,157.14,157.13,38.81773798]
[1750063921035,7.78705103,157.14,157.13,32.5684802]
[1750063921246,7.78705103,157.14,157.13,38.81773798]
[1750063924542,7.78705103,157.14,157.13,12.89773798]
[1750063924746,7.78705103,157.14,157.13,38.81773798]
[1750063925235,26.0,157.2,157.14,0.28432314]
[1750063925436,26.0,157.2,157.16,6.24925778]
[1750063925640,26.0,157.2,157.17,32.16925778]
[1750063926447,26.0,157.2,157.18,6.36213258]
[1750063928332,32.24925778,157.2,157.18,6.36213258]
[1750063929253,26.0,157.2,157.18,6.36213258]
[1750063938447,1.5627,157.22,157.19,3.99313095]
[1750063939464,1.5627,157.22,157.2,6.36132315]
[1750063940164,3.99313095,157.23,157.2,6.36132315]
[1750063943065,37.49713559,157.24,157.2,6.36132315]
[1750063943643,33.50400464,157.24,157.2,6.36132315]
[1750063943962,37.49713559,157.24,157.2,6.36132315]
[1750063946346,33.50400464,157.24,157.2,6.36132315]
[1750063946547,37.49713559,157.24,157.2,6.36132315]
[1750063947952,33.50400464,157.24,157.2,6.36132315]
[1750063948154,37.49713559,157.24,157.2,6.36132315]
[1750063949955,33.50400464,157.24,157.2,6.36132315]
[1750063950169,37.49713559,157.24,157.2,6.36132315]
[1750063950782,33.50400464,157.24,157.2,6.36132315]
[1750063950993,37.49713559,157.24,157.2,6.36132315]
[1750063952786,37.49713559,157.24,157.2,22.26463103]
[1750063952964,37.49713559,157.24,157.2,26.25776198]
[1750063953580,29.99313095,157.24,157.2,26.25776198]
[1750063954481,26.0,157.24,157.2,26.25776198]
[1750063954888,29.99313095,157.24,157.2,26.25776198]
[1750063955047,29.99313095,157.24,157.2,22.26463103]
[1750063959381,26.0,157.24,157.2,22.26463103]
[1750063959590,29.99313095,157.24,157.2,19.89643883]
[1750063959957,26.0,157.24,157.2,19.89643883]
[1750063960159,29.99313095,157.24,157.2,19.89643883]
[1750063960578,29.99313095,157.24,157.2,3.99313095]
[1750063961579,3.99313095,157.23,157.18,22.26746404]
[1750063961780,3.99313095,157.23,157.2,6.36132315]
[1750063962360,26.0,157.24,157.2,6.36132315]
[1750063962658,29.99313095,157.24,157.2,6.36132315]
[1750063965158,29.99313095,157.24,157.18,22.26746404]
[1750063965388,29.99313095,157.24,157.19,3.99313095]
[1750063966588,29.99313095,157.24,157.2,6.36132315]
[1750063967785,3.99313095,157.23,157.2,6.36132315]
[1750063968683,26.0,157.24,157.2,6.36132315]
[1750063968984,3.99313095,157.23,157.2,6.36132315]
[1750063970262,11.48969321,157.23,157.2,6.36132315]
[1750063970778,11.48969321,157.23,157.19,22.26604745]
[1750063970984,7.49656226,157.23,157.2,3.99313095]
[1750063971365,7.49656226,157.23,157.19,26.2591784]
[1750063972183,7.49656226,157.23,157.2,3.99313095]
[1750063973291,7.49656226,157.23,157.19,15.90431961]
[1750063973493,7.49656226,157.23,157.2,3.99313095]
[1750063974571,7.49656226,157.23,157.21,10.35404946]
[1750063976378,7.49656226,157.23,157.19,15.90431961]
[1750063976579,7.49656226,157.23,157.21,3.99313095]
[1750063978095,7.49656226,157.23,157.22,6.36051392]
[1750063978593,7.49656226,157.23,157.22,10.35364487]
[1750063978904,7.49656226,157.23,157.22,6.36051392]
[1750063984504,7.49656226,157.23,157.21,6.36091851]
[1750063986299,7.49656226,157.23,157.21,3.99313095]
[1750063986710,7.49656226,157.23,157.19,15.90431961]
[1750063986890,7.49656226,157.23,157.21,3.99313095]
[1750063987290,7.49656226,157.23,157.22,6.36051392]
[1750063989209,26.69413922,157.27,157.22,10.35364487]
[1750063989505,30.11600961,157.27,157.23,3.99313095]
[1750063989880,34.87371112,157.27,157.22,26.25492969]
[1750063990305,38.86684207,157.27,157.22,22.26179874]
[1750063990505,3.99313095,157.26,157.22,22.26179874]
[1750063991514,3.99313095,157.25,157.22,15.90128482]
[1750063992017,3.99313095,157.25,157.2,10.3544541]
[1750063992195,3.99313095,157.23,157.2,6.36132315]
[1750063993512,3.99313095,157.23,157.19,22.26543261]
[1750063994021,29.99313095,157.21,157.19,6.36172784]
[1750063994186,3.99313095,157.2,157.19,6.36172784]
[1750063995696,3.99313095,157.2,157.16,19.89960937]
[1750063995697,3.99313095,157.2,157.17,6.36253737]
[1750063998025,3.99313095,157.2,157.16,15.90647842]
[1750063998324,26.0,157.21,157.16,19.89960937]
[1750063998534,3.99313095,157.2,157.16,19.89960937]
[1750063999133,3.99313095,157.2,157.16,26.26255159]
[1750064001793,29.99313095,157.21,157.17,3.99313095]
[1750064001992,26.0,157.21,157.17,3.99313095]
[1750064002803,29.99313095,157.21,157.18,6.36213258]
[1750064004610,29.99313095,157.21,157.17,6.36253737]
[1750064007315,29.99313095,157.21,157.17,10.35566832]
[1750064007621,3.99313095,157.19,157.17,6.36253737]
[1750064007813,11.39180654,157.19,157.17,6.36253737]
[1750064008014,3.99313095,157.19,157.17,6.36253737]
[1750064009198,29.99313095,157.2,157.17,6.36253737]
[1750064009428,29.99313095,157.2,157.16,6.36294222]
[1750064010135,29.99313095,157.2,157.16,10.35607317]
[1750064013025,29.99313095,157.2,157.15,15.90809893]
[1750064013225,29.99313095,157.2,157.16,3.99313095]
[1750064015012,29.99313095,157.2,157.17,6.36253737]
[1750064020625,3.99313095,157.19,157.17,6.36253737]
[1750064021115,3.99313095,157.18,157.12,22.27507457]
[1750064021317,3.99313095,157.17,157.13,3.99313095]
[1750064021518,26.0,157.18,157.15,3.99313095]
[1750064023515,26.0,157.18,157.16,6.36294222]
[1750064025051,26.0,157.18,157.15,6.36334712]
[1750064027541,3.99313095,157.18,157.15,6.36334712]
[1750064031843,33.50735934,157.19,157.17,3.99313095]
[1750064032044,33.50735934,157.19,157.16,3.99313095]
[1750064033022,33.50735934,157.19,157.15,22.27171492]
[1750064033225,33.50735934,157.19,157.15,19.90149875]
[1750064033532,33.50735934,157.19,157.16,3.99313095]
[1750064034552,33.50735934,157.19,157.15,15.9083678]
[1750064034728,33.50735934,157.19,157.16,3.99313095]
[1750064035634,33.50735934,157.19,157.17,6.36253737]
[1750064040824,7.50735934,157.19,157.17,6.36253737]
[1750064041638,7.50735934,157.19,157.18,3.99313095]
[1750064043474,7.50735934,157.19,157.18,10.35526353]
[1750064045938,7.50735934,157.19,157.18,6.36213258]
[1750064047328,7.50735934,157.19,157.17,6.36253737]
[1750064052264,3.99313095,157.18,157.13,10.35728801]
[1750064052466,3.99313095,157.17,157.13,6.36415706]
[1750064053564,3.99313095,157.17,157.13,22.27454972]
[1750064053876,3.99313095,157.17,157.13,26.26768067]
[1750064054869,3.99313095,157.16,157.13,22.27454972]
[1750064055074,3.99313095,157.16,157.13,6.36415706]
[1750064057470,9.01815934,157.19,157.13,6.36415706]
[1750064057856,3.99313095,157.16,157.13,6.36415706]
[1750064059371,3.99313095,157.16,157.12,3.99313095]
[1750064060054,3.99313095,157.17,157.12,3.99313095]
[1750064060242,3.99313095,157.17,157.13,6.36415706]
[1750064061766,1.5108,157.19,157.13,6.36415706]
[1750064062071,37.36390003,157.17,157.13,6.36415706]
[1750064064374,33.37076908,157.17,157.13,6.36415706]
[1750064064674,29.99313095,157.17,157.13,6.36415706]
[1750064065360,29.99313095,157.17,157.11,22.27738527]
[1750064065560,29.99313095,157.17,157.12,3.99313095]
[1750064066479,29.99313095,157.17,157.13,6.36415706]
[1750064070274,11.33606672,157.16,157.13,6.36415706]
[1750064070655,3.99313095,157.14,157.13,6.36415706]
[1750064070872,26.0,157.13,157.09,6.36577757]
[1750064071074,26.0,157.13,157.09,10.35890852]
[1750064071374,26.0,157.13,157.09,26.27335246]
[1750064072173,29.99313095,157.13,157.09,26.27335246]
[1750064073153,26.0,157.13,157.09,22.28022151]
[1750064073368,29.99313095,157.13,157.09,26.27335246]
[1750064073680,29.99313095,157.13,157.09,15.91444394]
[1750064073859,26.0,157.13,157.09,15.91444394]
[1750064074178,29.99313095,157.13,157.09,15.91444394]
[1750064074866,29.99313095,157.13,157.09,22.28022151]
[1750064075478,3.99313095,157.12,157.09,6.36577757]
[1750064075965,11.82586143,157.09,157.07,61.92657977]
[1750064076580,11.82586143,157.09,157.08,3.99313095]
[1750064077467,11.82586143,157.09,157.08,10.35931378]
[1750064089285,15.81899238,157.09,157.08,6.36618283]
[1750064089966,15.81899238,157.09,157.07,64.29996449]
[1750064090168,3.99313095,157.08,157.07,64.29996449]
[1750064090583,3.99313095,157.08,157.07,57.93344882]
[1750064090768,3.99313095,157.08,157.07,64.30003696]
[1750064090968,29.99313095,157.08,157.07,64.30003696]
[1750064091671,3.99313095,157.08,157.07,64.30003696]
[1750064093288,3.99313095,157.08,157.07,57.93344882]
[1750064093879,26.0,157.09,157.07,57.93344882]
[1750064094079,3.99313095,157.08,157.07,57.93344882]
[1750064094490,3.99313095,157.08,157.07,64.30003696]
[1750064094791,29.99313095,157.09,157.07,64.30003696]
[1750064096578,3.99313095,157.09,157.07,64.30003696]
[1750064096891,29.99313095,157.11,157.07,68.29316791]
[1750064097276,26.0,157.11,157.07,68.29316791]
[1750064098273,26.0,157.11,157.07,56.46730691]
[1750064100196,154.719,157.14,157.08,29.87313095]
[1750064100371,154.719,157.14,157.09,3.99313095]
[1750064100372,5.61883095,157.14,157.09,3.99313095]
[1750064100570,5.61883095,157.14,157.1,6.36537237]
[1750064100795,31.61883095,157.14,157.1,6.36537237]
[1750064102397,3.99313095,157.13,157.1,6.36537237]
[1750064102582,27.6257,157.14,157.1,10.35850332]
[1750064102782,7.34293577,157.16,157.13,3.99313095]
[1750064103185,7.34293577,157.16,157.12,29.87313095]
[1750064103501,7.34293577,157.16,157.12,25.88]
[1750064103677,7.34293577,157.16,157.13,10.35728801]
[1750064103881,7.34293577,157.16,157.14,3.99313095]
[1750064104092,7.34293577,157.16,157.13,10.35728801]
[1750064104898,7.34293577,157.16,157.13,12.60631476]
[1750064105986,7.34293577,157.16,157.14,6.2421577]
[1750064106185,7.34293577,157.16,157.13,12.60631476]
[1750064107588,7.34293577,157.16,157.15,6.36334712]
[1750064108477,7.34293577,157.16,157.15,12.60550482]
[1750064108883,7.34293577,157.16,157.15,6.36334712]
[1750064109539,7.34293577,157.16,157.15,12.60550482]
[1750064115310,7.34293577,157.16,157.13,6.36415706]
[1750064115311,13.58509347,157.16,157.13,6.36415706]
[1750064115527,6.2421577,157.14,157.07,46.10758782]
[1750064115814,6.2421577,157.1,157.07,46.10758782]
[1750064116026,6.2421577,157.11,157.07,46.10758782]
[1750064116720,6.2421577,157.11,157.08,6.36618283]
[1750064119402,6.2421577,157.12,157.08,6.36618283]
[1750064119605,6.2421577,157.13,157.09,6.2421577]
[1750064120014,6.2421577,157.13,157.08,28.52379762]
[1750064123710,32.5157,157.15,157.08,22.28163992]
[1750064123711,6.2421577,157.12,157.08,22.28163992]
[1750064123928,6.2421577,157.11,157.08,6.36618283]
[1750064126206,6.2421577,157.12,157.08,6.36618283]